[Event "Titled Tuesday Blitz February 14 Late 2023"]
[White "Lorenzo De La Riva, Lazaro"]
[Black "Barp, Alberto"]
[WhiteFideId "2268809"]
[BlackFideId "872555"]
[WhiteElo "2404"]
[BlackElo "2432"]
[Result "0-1"]
[Round "01"]
[TimeControl "180+2"]
[Date "2023.02.14"]
[WhiteClock "0:00:03"]
[BlackClock "0:00:07"]

1. c4 {[%clk 0:02:59]}  e6 {[%clk 0:02:57]} 2. d4 {[%clk 0:02:58]}  Nf6 {[%clk 0:02:58]} 3. Nc3 {[%clk 0:02:57]}  Bb4 {[%clk 0:02:58]} 4. e3 {[%clk 0:02:57]}  O-O {[%clk 0:02:58]} 5. Bd2 {[%clk 0:02:56]}  d5 {[%clk 0:02:58]} 6. Nf3 {[%clk 0:02:54]}  Nbd7 {[%clk 0:02:51]} 7. Bd3 {[%clk 0:02:49]}  a6 {[%clk 0:02:45]} 8. O-O {[%clk 0:02:44]}  dxc4 {[%clk 0:02:45]} 9. Bxc4 {[%clk 0:02:45]}  b5 {[%clk 0:02:46]} 10. Bd3 {[%clk 0:02:45]}  Bb7 {[%clk 0:02:46]} 11. a4 {[%clk 0:02:25]}  bxa4 {[%clk 0:02:37]} 12. Nxa4 {[%clk 0:02:19]}  Qe7 {[%clk 0:02:32]} 13. Qe2 {[%clk 0:02:13]}  Bxd2 {[%clk 0:02:26]} 14. Qxd2 {[%clk 0:02:06]}  c5 {[%clk 0:02:23]} 15. dxc5 {[%clk 0:02:00]}  Bxf3 {[%clk 0:02:02]} 16. gxf3 {[%clk 0:01:59]}  Nxc5 {[%clk 0:02:01]} 17. Nxc5 {[%clk 0:01:51]}  Qxc5 {[%clk 0:02:02]} 18. Ra5 {[%clk 0:01:51]}  Qc6 {[%clk 0:02:02]} 19. Qe2 {[%clk 0:01:48]}  Rfb8 {[%clk 0:01:50]} 20. Rb1 {[%clk 0:01:47]}  Rb6 {[%clk 0:01:45]} 21. b4 {[%clk 0:01:44]}  Rab8 {[%clk 0:01:43]} 22. Rxa6 {[%clk 0:01:39]}  Nd5 {[%clk 0:01:28]} 23. Rxb6 {[%clk 0:01:28]}  Qxb6 {[%clk 0:01:18]} 24. Qc2 {[%clk 0:01:03]}  Nxb4 {[%clk 0:01:16]} 25. Bxh7+ {[%clk 0:01:01]}  Kh8 {[%clk 0:01:15]} 26. Qe4 {[%clk 0:01:01]}  g6 {[%clk 0:01:09]} 27. Bxg6 {[%clk 0:00:54]}  fxg6 {[%clk 0:01:09]} 28. Qh4+ {[%clk 0:00:54]}  Kg8 {[%clk 0:01:08]} 29. Qf6 {[%clk 0:00:49]}  Rb7 {[%clk 0:01:02]} 30. Rc1 {[%clk 0:00:38]}  Nc2 {[%clk 0:00:47]} 31. Kg2 {[%clk 0:00:20]}  Rf7 {[%clk 0:00:24]} 32. Qe5 {[%clk 0:00:16]}  Qb7 {[%clk 0:00:18]} 33. e4 {[%clk 0:00:12]}  Nb4 {[%clk 0:00:14]} 34. Rb1 {[%clk 0:00:11]}  Nd3 {[%clk 0:00:13]} 35. Qa1 {[%clk 0:00:09]}  Nf4+ {[%clk 0:00:10]} 36. Kg3 {[%clk 0:00:06]}  Qc7 {[%clk 0:00:11]} 37. e5 {[%clk 0:00:06]}  Nd5 {[%clk 0:00:09]} 38. Qd4 {[%clk 0:00:03]}  Qe7 {[%clk 0:00:09]} 39. f4 {[%clk 0:00:02]}  Qf8 {[%clk 0:00:07]} 40. Rb8 {[%clk 0:00:03]}  Qxb8 {[%clk 0:00:07]} 0-1


[Site "https://www.chess.com"]

[Event "Titled Tuesday Blitz February 14 Late 2023"]
[White "Gatterer, Florian"]
[Black "Pulpan, Jakub"]
[WhiteFideId "811688"]
[BlackFideId "302759"]
[WhiteElo "2170"]
[BlackElo "2427"]
[Result "0-1"]
[Round "01"]
[TimeControl "180+2"]
[Date "2023.02.14"]
[WhiteClock "0:00:09"]
[BlackClock "0:00:10"]

1. e4 {[%clk 0:03:00]}  c5 {[%clk 0:02:13]} 2. Nf3 {[%clk 0:03:00]}  d5 {[%clk 0:01:50]} 3. exd5 {[%clk 0:02:58]}  Nf6 {[%clk 0:01:50]} 4. Bb5+ {[%clk 0:02:57]}  Nbd7 {[%clk 0:01:48]} 5. c4 {[%clk 0:02:56]}  a6 {[%clk 0:01:48]} 6. Ba4 {[%clk 0:02:54]}  b5 {[%clk 0:01:40]} 7. cxb5 {[%clk 0:02:46]}  Nb6 {[%clk 0:01:38]} 8. O-O {[%clk 0:02:29]}  Nxa4 {[%clk 0:01:30]} 9. Qxa4 {[%clk 0:02:28]}  Bd7 {[%clk 0:01:31]} 10. Re1 {[%clk 0:02:05]}  Bxb5 {[%clk 0:01:24]} 11. Qc2 {[%clk 0:02:04]}  Qxd5 {[%clk 0:01:13]} 12. Nc3 {[%clk 0:02:01]}  Qd3 {[%clk 0:01:13]} 13. Qxd3 {[%clk 0:02:01]}  Bxd3 {[%clk 0:01:13]} 14. Ne5 {[%clk 0:02:01]}  Rd8 {[%clk 0:01:11]} 15. b3 {[%clk 0:02:00]}  e6 {[%clk 0:00:53]} 16. Ba3 {[%clk 0:01:55]}  Bf5 {[%clk 0:00:31]} 17. Rad1 {[%clk 0:01:39]}  Bd6 {[%clk 0:00:20]} 18. Nc4 {[%clk 0:01:34]}  Be7 {[%clk 0:00:18]} 19. Ne5 {[%clk 0:01:33]}  Rc8 {[%clk 0:00:18]} 20. Rc1 {[%clk 0:01:25]}  Nd7 {[%clk 0:00:17]} 21. Nxd7 {[%clk 0:01:19]}  Kxd7 {[%clk 0:00:18]} 22. Ne4 {[%clk 0:01:19]}  Bxe4 {[%clk 0:00:17]} 23. Rxe4 {[%clk 0:01:20]}  Rhd8 {[%clk 0:00:18]} 24. Kf1 {[%clk 0:01:08]}  Ke8 {[%clk 0:00:18]} 25. Ke2 {[%clk 0:01:08]}  Rd5 {[%clk 0:00:18]} 26. Rc2 {[%clk 0:01:03]}  h5 {[%clk 0:00:14]} 27. f4 {[%clk 0:00:59]}  Kd7 {[%clk 0:00:12]} 28. Ra4 {[%clk 0:00:57]}  Rc6 {[%clk 0:00:13]} 29. Rac4 {[%clk 0:00:56]}  g5 {[%clk 0:00:13]} 30. g3 {[%clk 0:00:48]}  h4 {[%clk 0:00:12]} 31. b4 {[%clk 0:00:42]}  hxg3 {[%clk 0:00:12]} 32. hxg3 {[%clk 0:00:41]}  gxf4 {[%clk 0:00:13]} 33. gxf4 {[%clk 0:00:42]}  Rh5 {[%clk 0:00:13]} 34. bxc5 {[%clk 0:00:41]}  Rh2+ {[%clk 0:00:14]} 35. Kf3 {[%clk 0:00:41]}  Rh3+ {[%clk 0:00:14]} 36. Ke4 {[%clk 0:00:39]}  Rxa3 {[%clk 0:00:15]} 37. Rd4+ {[%clk 0:00:39]}  Kc7 {[%clk 0:00:14]} 38. Rdc4 {[%clk 0:00:36]}  Bf8 {[%clk 0:00:14]} 39. f5 {[%clk 0:00:36]}  exf5+ {[%clk 0:00:14]} 40. Kxf5 {[%clk 0:00:37]}  Rf3+ {[%clk 0:00:14]} 41. Ke4 {[%clk 0:00:36]}  Rh3 {[%clk 0:00:15]} 42. d4 {[%clk 0:00:33]}  Rh4+ {[%clk 0:00:15]} 43. Kd3 {[%clk 0:00:33]}  Rg6 {[%clk 0:00:15]} 44. Kc3 {[%clk 0:00:32]}  a5 {[%clk 0:00:15]} 45. Kb3 {[%clk 0:00:32]}  Rh3+ {[%clk 0:00:11]} 46. Ka4 {[%clk 0:00:31]}  Kc6 {[%clk 0:00:10]} 47. Rb2 {[%clk 0:00:24]}  Rgg3 {[%clk 0:00:11]} 48. Rb3 {[%clk 0:00:21]}  Rxb3 {[%clk 0:00:09]} 49. axb3 {[%clk 0:00:21]}  f5 {[%clk 0:00:10]} 50. b4 {[%clk 0:00:17]}  axb4 {[%clk 0:00:10]} 51. Rxb4 {[%clk 0:00:18]}  Kd5 {[%clk 0:00:08]} 52. Rb6 {[%clk 0:00:15]}  Bxc5 {[%clk 0:00:06]} 53. dxc5 {[%clk 0:00:15]}  Rc3 {[%clk 0:00:06]} 54. Kb4 {[%clk 0:00:13]}  Rc4+ {[%clk 0:00:06]} 55. Kb3 {[%clk 0:00:13]}  Rxc5 {[%clk 0:00:07]} 56. Rf6 {[%clk 0:00:13]}  Ke4 {[%clk 0:00:07]} 57. Re6+ {[%clk 0:00:12]}  Kf3 {[%clk 0:00:07]} 58. Kb4 {[%clk 0:00:13]}  Rc8 {[%clk 0:00:08]} 59. Rf6 {[%clk 0:00:12]}  f4 {[%clk 0:00:08]} 60. Re6 {[%clk 0:00:12]}  Kg3 {[%clk 0:00:08]} 61. Rf6 {[%clk 0:00:13]}  Kf2 {[%clk 0:00:09]} 62. Rg6 {[%clk 0:00:13]}  f3 {[%clk 0:00:09]} 63. Rf6 {[%clk 0:00:14]}  Ke2 {[%clk 0:00:10]} 64. Re6+ {[%clk 0:00:15]}  Kf1 {[%clk 0:00:10]} 65. Rf6 {[%clk 0:00:08]}  f2 {[%clk 0:00:10]} 66. Rf8 {[%clk 0:00:09]}  Rxf8 {[%clk 0:00:10]} 0-1


[Site "https://www.chess.com"]

[Event "Titled Tuesday Blitz February 14 Late 2023"]
[White "Perske, Thore"]
[Black "Figorito, Nick"]
[WhiteFideId "12902195"]
[BlackFideId "30923689"]
[WhiteElo "2448"]
[BlackElo "2036"]
[Result "1-0"]
[Round "01"]
[TimeControl "180+2"]
[Date "2023.02.14"]
[WhiteClock "0:00:31"]
[BlackClock "0:00:22"]

1. e4 {[%clk 0:03:00]}  e6 {[%clk 0:02:59]} 2. d4 {[%clk 0:03:00]}  d5 {[%clk 0:03:00]} 3. Nd2 {[%clk 0:03:00]}  Nf6 {[%clk 0:03:01]} 4. e5 {[%clk 0:03:01]}  Nfd7 {[%clk 0:03:02]} 5. c3 {[%clk 0:03:01]}  c5 {[%clk 0:03:02]} 6. f4 {[%clk 0:03:02]}  Nc6 {[%clk 0:03:03]} 7. Ndf3 {[%clk 0:03:02]}  Qb6 {[%clk 0:03:01]} 8. a3 {[%clk 0:03:02]}  a5 {[%clk 0:03:00]} 9. b3 {[%clk 0:03:02]}  a4 {[%clk 0:02:57]} 10. b4 {[%clk 0:03:02]}  c4 {[%clk 0:02:58]} 11. h4 {[%clk 0:03:01]}  h5 {[%clk 0:02:57]} 12. Nh3 {[%clk 0:02:48]}  Be7 {[%clk 0:02:56]} 13. Be2 {[%clk 0:02:40]}  g6 {[%clk 0:02:55]} 14. Nhg5 {[%clk 0:02:06]}  Nf8 {[%clk 0:02:51]} 15. Qd2 {[%clk 0:02:05]}  Nh7 {[%clk 0:02:51]} 16. Bd1 {[%clk 0:01:59]}  Nxg5 {[%clk 0:02:49]} 17. hxg5 {[%clk 0:01:59]}  Bd7 {[%clk 0:02:45]} 18. Kf2 {[%clk 0:01:57]}  Qa7 {[%clk 0:02:27]} 19. Bc2 {[%clk 0:01:56]}  b5 {[%clk 0:02:18]} 20. g4 {[%clk 0:01:53]}  O-O-O {[%clk 0:02:05]} 21. gxh5 {[%clk 0:01:53]}  Rxh5 {[%clk 0:01:57]} 22. Rxh5 {[%clk 0:01:52]}  gxh5 {[%clk 0:01:58]} 23. Qe2 {[%clk 0:01:50]}  Rh8 {[%clk 0:01:57]} 24. Be3 {[%clk 0:01:49]}  Qc7 {[%clk 0:01:35]} 25. Rh1 {[%clk 0:01:48]}  Qd8 {[%clk 0:01:34]} 26. Ne1 {[%clk 0:01:43]}  h4 {[%clk 0:01:32]} 27. Qg4 {[%clk 0:01:42]}  Qg8 {[%clk 0:01:20]} 28. Rxh4 {[%clk 0:01:40]}  Rxh4 {[%clk 0:01:20]} 29. Qxh4 {[%clk 0:01:41]}  Qg7 {[%clk 0:01:09]} 30. Nf3 {[%clk 0:01:40]}  Bd8 {[%clk 0:01:06]} 31. Qh5 {[%clk 0:01:39]}  Ne7 {[%clk 0:01:04]} 32. Nh4 {[%clk 0:01:33]}  Be8 {[%clk 0:01:01]} 33. Qh6 {[%clk 0:01:25]}  Qg8 {[%clk 0:00:59]} 34. f5 {[%clk 0:01:16]}  Kd7 {[%clk 0:00:35]} 35. f6 {[%clk 0:01:00]}  Ng6 {[%clk 0:00:32]} 36. Nxg6 {[%clk 0:00:40]}  fxg6 {[%clk 0:00:33]} 37. Qg7+ {[%clk 0:00:35]}  Bf7 {[%clk 0:00:22]} 38. Qxg8 {[%clk 0:00:31]}  Bxg8 {[%clk 0:00:22]} 39. Bxg6 {[%clk 0:00:31]} 1-0


[Site "https://www.chess.com"]

[Event "Titled Tuesday Blitz February 14 Late 2023"]
[White "Sarkar, Justin"]
[Black "Goltsev, Dmitry"]
[WhiteFideId "2010011"]
[BlackFideId "24176710"]
[WhiteElo "2309"]
[BlackElo "2269"]
[Result "0-1"]
[Round "01"]
[TimeControl "180+2"]
[Date "2023.02.14"]
[WhiteClock "0:00:01"]
[BlackClock "0:02:05"]

1. e4 {[%clk 0:02:54]}  e6 {[%clk 0:02:58]} 2. b3 {[%clk 0:02:51]}  d5 {[%clk 0:02:59]} 3. exd5 {[%clk 0:02:49]}  exd5 {[%clk 0:02:59]} 4. Bb2 {[%clk 0:02:48]}  Nf6 {[%clk 0:03:00]} 5. Qe2+ {[%clk 0:02:47]}  Be6 {[%clk 0:03:00]} 6. Nh3 {[%clk 0:02:41]}  Be7 {[%clk 0:03:00]} 7. Nf4 {[%clk 0:02:36]}  Qd6 {[%clk 0:02:57]} 8. Nxe6 {[%clk 0:02:32]}  fxe6 {[%clk 0:02:58]} 9. Nc3 {[%clk 0:02:28]}  O-O {[%clk 0:02:55]} 10. O-O-O {[%clk 0:02:19]}  a6 {[%clk 0:02:55]} 11. g3 {[%clk 0:02:17]}  Nbd7 {[%clk 0:02:54]} 12. h4 {[%clk 0:02:00]}  e5 {[%clk 0:02:52]} 13. Bh3 {[%clk 0:01:52]}  d4 {[%clk 0:02:50]} 14. Ne4 {[%clk 0:01:49]}  Nxe4 {[%clk 0:02:50]} 15. Qxe4 {[%clk 0:01:49]}  Nc5 {[%clk 0:02:51]} 16. Qg2 {[%clk 0:01:30]}  e4 {[%clk 0:02:47]} 17. Kb1 {[%clk 0:01:14]}  Bf6 {[%clk 0:02:47]} 18. Rhe1 {[%clk 0:01:03]}  a5 {[%clk 0:02:46]} 19. Ba3 {[%clk 0:00:52]}  d3 {[%clk 0:02:38]} 20. c3 {[%clk 0:00:39]}  a4 {[%clk 0:02:37]} 21. Bxc5 {[%clk 0:00:30]}  Qxc5 {[%clk 0:02:38]} 22. b4 {[%clk 0:00:29]}  Qb6 {[%clk 0:02:38]} 23. Qxe4 {[%clk 0:00:25]}  Qxf2 {[%clk 0:02:34]} 24. Qxd3 {[%clk 0:00:20]}  Rfd8 {[%clk 0:02:33]} 25. Qe3 {[%clk 0:00:14]}  Qxe3 {[%clk 0:02:23]} 26. Rxe3 {[%clk 0:00:14]}  Rd6 {[%clk 0:02:23]} 27. d4 {[%clk 0:00:13]}  Rad8 {[%clk 0:02:21]} 28. Rde1 {[%clk 0:00:11]}  Kf7 {[%clk 0:02:21]} 29. Be6+ {[%clk 0:00:10]}  Kg6 {[%clk 0:02:21]} 30. a3 {[%clk 0:00:09]}  b6 {[%clk 0:02:22]} 31. Bc4 {[%clk 0:00:05]}  c5 {[%clk 0:02:21]} 32. Bd3+ {[%clk 0:00:03]}  Kf7 {[%clk 0:02:16]} 33. Bxh7 {[%clk 0:00:03]}  cxd4 {[%clk 0:02:15]} 34. cxd4 {[%clk 0:00:03]}  Rxd4 {[%clk 0:02:16]} 35. h5 {[%clk 0:00:02]}  g5 {[%clk 0:02:09]} 36. hxg6+ {[%clk 0:00:01]}  Kg7 {[%clk 0:02:09]} 37. g4 {[%clk 0:00:01]}  Rd2 {[%clk 0:02:10]} 38. R3e2 {[%clk 0:00:01]}  R2d3 {[%clk 0:02:05]} 0-1


[Site "https://www.chess.com"]

[Event "Titled Tuesday Blitz February 14 Late 2023"]
[White "Meunier-Pion, Jean"]
[Black "Oro, Faustino"]
[WhiteFideId "20685327"]
[BlackFideId "20000197"]
[WhiteElo "2215"]
[BlackElo "2269"]
[Result "1-0"]
[Round "01"]
[TimeControl "180+2"]
[Date "2023.02.14"]
[WhiteClock "0:00:08"]
[BlackClock "0:00:20"]

1. e4 {[%clk 0:02:59]}  c5 {[%clk 0:02:59]} 2. Nf3 {[%clk 0:02:59]}  d6 {[%clk 0:02:59]} 3. d4 {[%clk 0:02:59]}  cxd4 {[%clk 0:03:00]} 4. Nxd4 {[%clk 0:03:00]}  Nf6 {[%clk 0:03:00]} 5. Nc3 {[%clk 0:03:00]}  a6 {[%clk 0:03:00]} 6. h3 {[%clk 0:03:01]}  e5 {[%clk 0:03:00]} 7. Nde2 {[%clk 0:03:01]}  h5 {[%clk 0:03:00]} 8. g3 {[%clk 0:03:02]}  Be7 {[%clk 0:03:00]} 9. Bg2 {[%clk 0:03:02]}  O-O {[%clk 0:03:00]} 10. a4 {[%clk 0:03:02]}  Be6 {[%clk 0:02:58]} 11. Be3 {[%clk 0:03:02]}  Nbd7 {[%clk 0:02:55]} 12. O-O {[%clk 0:03:02]}  Qc7 {[%clk 0:02:54]} 13. Qd2 {[%clk 0:02:59]}  Rac8 {[%clk 0:02:48]} 14. Rac1 {[%clk 0:02:56]}  Nb6 {[%clk 0:02:40]} 15. b3 {[%clk 0:02:55]}  Rfd8 {[%clk 0:02:34]} 16. Nd5 {[%clk 0:02:37]}  Nbxd5 {[%clk 0:02:30]} 17. exd5 {[%clk 0:02:38]}  Bf5 {[%clk 0:02:30]} 18. c4 {[%clk 0:02:36]}  Ne4 {[%clk 0:02:23]} 19. Qd1 {[%clk 0:02:11]}  Nc5 {[%clk 0:02:12]} 20. f4 {[%clk 0:01:43]}  Bh7 {[%clk 0:01:51]} 21. f5 {[%clk 0:01:15]}  Bf6 {[%clk 0:01:37]} 22. Nc3 {[%clk 0:01:09]}  Qe7 {[%clk 0:01:34]} 23. b4 {[%clk 0:00:55]}  Nd7 {[%clk 0:01:33]} 24. Ne4 {[%clk 0:00:55]}  g6 {[%clk 0:00:59]} 25. g4 {[%clk 0:00:49]}  hxg4 {[%clk 0:00:58]} 26. hxg4 {[%clk 0:00:41]}  Bg7 {[%clk 0:00:53]} 27. f6 {[%clk 0:00:32]}  Qf8 {[%clk 0:00:32]} 28. fxg7 {[%clk 0:00:27]}  Kxg7 {[%clk 0:00:33]} 29. Qd2 {[%clk 0:00:22]}  Kg8 {[%clk 0:00:29]} 30. Bh6 {[%clk 0:00:19]}  Qe7 {[%clk 0:00:25]} 31. Bg5 {[%clk 0:00:19]}  Qf8 {[%clk 0:00:26]} 32. Bh6 {[%clk 0:00:14]}  Qe7 {[%clk 0:00:23]} 33. Bg5 {[%clk 0:00:15]}  Qf8 {[%clk 0:00:23]} 34. Bxd8 {[%clk 0:00:16]}  Rxd8 {[%clk 0:00:24]} 35. Qf2 {[%clk 0:00:15]}  f5 {[%clk 0:00:23]} 36. gxf5 {[%clk 0:00:14]}  gxf5 {[%clk 0:00:24]} 37. Ng5 {[%clk 0:00:13]}  Qf6 {[%clk 0:00:23]} 38. Ne6 {[%clk 0:00:11]}  Re8 {[%clk 0:00:22]} 39. Bf3 {[%clk 0:00:11]}  Kh8 {[%clk 0:00:22]} 40. Qh2 {[%clk 0:00:06]}  e4 {[%clk 0:00:21]} 41. Be2 {[%clk 0:00:06]}  Ne5 {[%clk 0:00:21]} 42. Kh1 {[%clk 0:00:05]}  Nd3 {[%clk 0:00:14]} 43. Bxd3 {[%clk 0:00:05]}  exd3 {[%clk 0:00:15]} 44. Rf4 {[%clk 0:00:04]}  Rg8 {[%clk 0:00:15]} 45. Rg1 {[%clk 0:00:03]}  Re8 {[%clk 0:00:13]} 46. Rgf1 {[%clk 0:00:02]}  Qe5 {[%clk 0:00:13]} 47. Rxf5 {[%clk 0:00:02]}  Qxh2+ {[%clk 0:00:11]} 48. Kxh2 {[%clk 0:00:03]}  Bxf5 {[%clk 0:00:12]} 49. Rxf5 {[%clk 0:00:03]}  d2 {[%clk 0:00:13]} 50. Rf1 {[%clk 0:00:04]}  Rg8 {[%clk 0:00:14]} 51. Rd1 {[%clk 0:00:04]}  Rg4 {[%clk 0:00:14]} 52. Rxd2 {[%clk 0:00:04]}  Rxc4 {[%clk 0:00:15]} 53. Rb2 {[%clk 0:00:04]}  Kg8 {[%clk 0:00:15]} 54. Kg3 {[%clk 0:00:04]}  Kf7 {[%clk 0:00:15]} 55. Kf3 {[%clk 0:00:05]}  Kf6 {[%clk 0:00:15]} 56. Ke3 {[%clk 0:00:06]}  Ke5 {[%clk 0:00:16]} 57. Kd3 {[%clk 0:00:04]}  Rh4 {[%clk 0:00:17]} 58. Nc7 {[%clk 0:00:03]}  Rh3+ {[%clk 0:00:15]} 59. Kc4 {[%clk 0:00:02]}  Rh1 {[%clk 0:00:15]} 60. Re2+ {[%clk 0:00:02]}  Kf6 {[%clk 0:00:15]} 61. b5 {[%clk 0:00:03]}  Kf7 {[%clk 0:00:16]} 62. Kb4 {[%clk 0:00:03]}  Rb1+ {[%clk 0:00:16]} 63. Ka5 {[%clk 0:00:03]}  Ra1 {[%clk 0:00:15]} 64. Re4 {[%clk 0:00:02]}  Rc1 {[%clk 0:00:15]} 65. Kb6 {[%clk 0:00:01]}  axb5 {[%clk 0:00:15]} 66. axb5 {[%clk 0:00:02]}  Rc2 {[%clk 0:00:15]} 67. Kxb7 {[%clk 0:00:03]}  Kf6 {[%clk 0:00:15]} 68. Re6+ {[%clk 0:00:03]}  Kf5 {[%clk 0:00:16]} 69. Rxd6 {[%clk 0:00:04]}  Rb2 {[%clk 0:00:16]} 70. Re6 {[%clk 0:00:04]}  Rd2 {[%clk 0:00:16]} 71. Kc6 {[%clk 0:00:05]}  Rc2+ {[%clk 0:00:16]} 72. Kd6 {[%clk 0:00:05]}  Rb2 {[%clk 0:00:17]} 73. Kc5 {[%clk 0:00:05]}  Rc2+ {[%clk 0:00:18]} 74. Kd6 {[%clk 0:00:06]}  Rb2 {[%clk 0:00:19]} 75. Re5+ {[%clk 0:00:07]}  Kf4 {[%clk 0:00:19]} 76. Re1 {[%clk 0:00:07]}  Rb3 {[%clk 0:00:19]} 77. Rf1+ {[%clk 0:00:07]}  Ke3 {[%clk 0:00:19]} 78. Rh1 {[%clk 0:00:07]}  Kf2 {[%clk 0:00:19]} 79. Rh2+ {[%clk 0:00:07]}  Kf3 {[%clk 0:00:20]} 80. Rh3+ {[%clk 0:00:07]}  Kg4 {[%clk 0:00:20]} 81. Rxb3 {[%clk 0:00:08]} 1-0


[Site "https://www.chess.com"]

[Event "Titled Tuesday Blitz February 14 Late 2023"]
[White "Stoyanov, Tsvetan"]
[Black "Miszler, Levente"]
[WhiteFideId "2917173"]
[BlackFideId "763276"]
[WhiteElo "2454"]
[BlackElo "2271"]
[Result "1-0"]
[Round "01"]
[TimeControl "180+2"]
[Date "2023.02.14"]
[WhiteClock "0:00:05"]
[BlackClock "0:00:02"]

1. b3 {[%clk 0:02:55]}  c5 {[%clk 0:02:56]} 2. Bb2 {[%clk 0:02:54]}  Nc6 {[%clk 0:02:56]} 3. e4 {[%clk 0:02:55]}  e5 {[%clk 0:02:51]} 4. Bb5 {[%clk 0:02:53]}  d6 {[%clk 0:02:51]} 5. Nf3 {[%clk 0:02:51]}  g6 {[%clk 0:02:46]} 6. O-O {[%clk 0:02:51]}  Bg7 {[%clk 0:02:46]} 7. c3 {[%clk 0:02:51]}  Ne7 {[%clk 0:02:45]} 8. d4 {[%clk 0:02:49]}  exd4 {[%clk 0:02:45]} 9. cxd4 {[%clk 0:02:50]}  O-O {[%clk 0:02:41]} 10. Na3 {[%clk 0:02:42]}  d5 {[%clk 0:02:32]} 11. exd5 {[%clk 0:02:34]}  Nxd5 {[%clk 0:02:27]} 12. Bxc6 {[%clk 0:02:28]}  bxc6 {[%clk 0:02:26]} 13. Qc1 {[%clk 0:02:23]}  Bg4 {[%clk 0:02:20]} 14. Ne5 {[%clk 0:02:22]}  Bxe5 {[%clk 0:01:02]} 15. dxe5 {[%clk 0:02:23]}  Qe7 {[%clk 0:01:03]} 16. Re1 {[%clk 0:02:07]}  Rfe8 {[%clk 0:00:51]} 17. Nc4 {[%clk 0:02:02]}  Be6 {[%clk 0:00:42]} 18. Nd6 {[%clk 0:02:01]}  Red8 {[%clk 0:00:40]} 19. Qxc5 {[%clk 0:01:50]}  Qg5 {[%clk 0:00:30]} 20. Ne4 {[%clk 0:01:37]}  Qf5 {[%clk 0:00:20]} 21. Ng3 {[%clk 0:01:25]}  Qg5 {[%clk 0:00:18]} 22. Rad1 {[%clk 0:01:18]}  Nf4 {[%clk 0:00:15]} 23. Bc1 {[%clk 0:01:06]}  Qh4 {[%clk 0:00:12]} 24. Qxc6 {[%clk 0:00:27]}  Bd5 {[%clk 0:00:08]} 25. Qf6 {[%clk 0:00:27]}  Nxg2 {[%clk 0:00:03]} 26. Bg5 {[%clk 0:00:12]}  Qh3 {[%clk 0:00:03]} 27. Rxd5 {[%clk 0:00:07]}  Rxd5 {[%clk 0:00:02]} 28. Rc1 {[%clk 0:00:05]} 1-0


[Site "https://www.chess.com"]

[Event "Titled Tuesday Blitz February 14 Late 2023"]
[White "Salimova, Nurgyul"]
[Black "Fernandez, Maria Florencia"]
[WhiteFideId "2915138"]
[BlackFideId "116459"]
[WhiteElo "2391"]
[BlackElo "2129"]
[Result "1-0"]
[Round "01"]
[TimeControl "180+2"]
[Date "2023.02.14"]
[WhiteClock "0:00:30"]
[BlackClock "0:00:03"]

1. e4 {[%clk 0:02:58]}  c5 {[%clk 0:02:54]} 2. Nf3 {[%clk 0:02:56]}  d6 {[%clk 0:02:54]} 3. d4 {[%clk 0:02:53]}  cxd4 {[%clk 0:02:54]} 4. Nxd4 {[%clk 0:02:53]}  Nf6 {[%clk 0:02:53]} 5. Nc3 {[%clk 0:02:53]}  g6 {[%clk 0:02:52]} 6. Be3 {[%clk 0:02:52]}  Bg7 {[%clk 0:02:49]} 7. f3 {[%clk 0:02:53]}  O-O {[%clk 0:02:47]} 8. Qd2 {[%clk 0:02:53]}  Nc6 {[%clk 0:02:45]} 9. O-O-O {[%clk 0:02:52]}  d5 {[%clk 0:02:44]} 10. Nxc6 {[%clk 0:02:49]}  bxc6 {[%clk 0:02:43]} 11. Bh6 {[%clk 0:02:50]}  Bxh6 {[%clk 0:02:39]} 12. Qxh6 {[%clk 0:02:51]}  e5 {[%clk 0:02:12]} 13. h4 {[%clk 0:02:46]}  Be6 {[%clk 0:02:08]} 14. h5 {[%clk 0:02:45]}  d4 {[%clk 0:01:47]} 15. f4 {[%clk 0:02:29]}  Qc7 {[%clk 0:01:34]} 16. hxg6 {[%clk 0:02:28]}  fxg6 {[%clk 0:01:30]} 17. f5 {[%clk 0:02:01]}  dxc3 {[%clk 0:01:04]} 18. fxe6 {[%clk 0:01:57]}  cxb2+ {[%clk 0:01:04]} 19. Kb1 {[%clk 0:01:54]}  Qe7 {[%clk 0:00:36]} 20. Bc4 {[%clk 0:01:46]}  Rad8 {[%clk 0:00:36]} 21. Rdf1 {[%clk 0:01:37]}  Rd4 {[%clk 0:00:19]} 22. Bb3 {[%clk 0:01:35]}  Rxe4 {[%clk 0:00:17]} 23. Rxf6 {[%clk 0:00:39]}  Rxf6 {[%clk 0:00:15]} 24. Qxh7+ {[%clk 0:00:38]}  Qxh7 {[%clk 0:00:05]} 25. e7+ {[%clk 0:00:39]}  Kg7 {[%clk 0:00:04]} 26. Rxh7+ {[%clk 0:00:35]}  Kxh7 {[%clk 0:00:05]} 27. e8=Q {[%clk 0:00:35]}  Rf1+ {[%clk 0:00:05]} 28. Kxb2 {[%clk 0:00:35]}  Ree1 {[%clk 0:00:05]} 29. g4 {[%clk 0:00:30]}  Kh6 {[%clk 0:00:05]} 30. Qe7 {[%clk 0:00:29]}  e4 {[%clk 0:00:03]} 31. Qh4+ {[%clk 0:00:29]}  Kg7 {[%clk 0:00:03]} 32. g5 {[%clk 0:00:30]}  e3 {[%clk 0:00:03]} 33. Qh6# {[%clk 0:00:30]} 1-0


[Site "https://www.chess.com"]

[Event "Titled Tuesday Blitz February 14 Late 2023"]
[White "Haszon, David"]
[Black "Bjelobrk, Igor"]
[WhiteFideId "733610"]
[BlackFideId "4300726"]
[WhiteElo "2264"]
[BlackElo "2403"]
[Result "1-0"]
[Round "01"]
[TimeControl "180+2"]
[Date "2023.02.14"]
[WhiteClock "0:01:41"]
[BlackClock "0:00:24"]

1. d4 {[%clk 0:02:59]}  d5 {[%clk 0:01:35]} 2. Bf4 {[%clk 0:02:59]}  Nf6 {[%clk 0:01:34]} 3. e3 {[%clk 0:02:59]}  e6 {[%clk 0:01:33]} 4. Nf3 {[%clk 0:02:58]}  Bd6 {[%clk 0:01:30]} 5. Bg3 {[%clk 0:02:58]}  O-O {[%clk 0:01:29]} 6. Bd3 {[%clk 0:02:56]}  c5 {[%clk 0:01:29]} 7. c3 {[%clk 0:02:56]}  Qc7 {[%clk 0:01:27]} 8. Nbd2 {[%clk 0:02:55]}  Nbd7 {[%clk 0:01:24]} 9. e4 {[%clk 0:02:32]}  e5 {[%clk 0:01:21]} 10. dxe5 {[%clk 0:02:29]}  Nxe5 {[%clk 0:01:20]} 11. Nxe5 {[%clk 0:02:28]}  Bxe5 {[%clk 0:01:21]} 12. exd5 {[%clk 0:02:28]}  Bxg3 {[%clk 0:01:18]} 13. hxg3 {[%clk 0:02:29]}  Re8+ {[%clk 0:01:19]} 14. Kf1 {[%clk 0:02:29]}  Qe5 {[%clk 0:00:57]} 15. Nf3 {[%clk 0:02:26]}  Qxd5 {[%clk 0:00:42]} 16. Bxh7+ {[%clk 0:02:24]}  Kf8 {[%clk 0:00:42]} 17. Bd3 {[%clk 0:02:12]}  Be6 {[%clk 0:00:32]} 18. c4 {[%clk 0:02:03]}  Qd6 {[%clk 0:00:29]} 19. Qb3 {[%clk 0:01:57]}  Qc7 {[%clk 0:00:28]} 20. Re1 {[%clk 0:01:52]}  g6 {[%clk 0:00:26]} 21. Qc3 {[%clk 0:01:45]}  Kg7 {[%clk 0:00:26]} 22. Ng5 {[%clk 0:01:45]}  Bd7 {[%clk 0:00:24]} 23. Rh7+ {[%clk 0:01:41]} 1-0


[Site "https://www.chess.com"]